[Event "FIDE WY-U16 Olympiad 2022"]
[Site "Nakhchivan"]
[Date "2022.10.04"]
[Round "3.17"]
[White "Kiriella, K G T S D"]
[Black "Karsten, Jan"]
[Result "1/2-1/2"]
[ECO "B92"]
[WhiteElo "1907"]
[BlackElo "1985"]
[Annotator "TA"]
[PlyCount "134"]
[EventDate "2022.10.02"]
[EventType "team-tourn"]
[EventCountry "AZE"]
[SourceTitle "playchess.com"]
[Source "ChessBase"]
[SourceQuality "1"]
[WhiteTeam "Sri Lanka"]
[BlackTeam "South Africa"]
[WhiteTeamCountry "SRI"]
[BlackTeamCountry "RSA"]
[TimeControl "40/5400+30:1800+30"]

{[%evp 22,134,0,2,8,-14,-6,-37,-27,-27,-34,-45,-37,-35,-35,-35,-35,-37,-38,-46,0,0,-2,-13,0,0,10,0,122,117,133,137,132,132,132,132,130,122,114,127,143,141,143,129,134,95,100,88,96,61,70,73,89,68,84,85,248,245,628,605,818,727,818,817,509,487,817,817,792,689,612,294,294,282,294,297,294,294,275,282,282,289,297,297,297,297,297,297,297,297,297,297,297,297,297,297,297,297,297,254,256,256,265,239,246,246,246,246,246,0,298,298,298,298,298]} 1. e4 {[%emt 0:00:03]} c5 {[%emt 0:00:09]} 2. Nf3 {[%emt 0:00:03]} d6 {[%emt 0:00:03]} 3. d4 {[%emt 0:00:03]} cxd4 {[%emt 0:00:03]} 4. Nxd4 {[%emt 0:00:07]} Nf6 {[%emt 0:00:05]} 5. Nc3 {[%emt 0:00:04]} a6 {[%emt 0:00:04]} 6. Be2 {[%emt 0:00:13]} e5 {[%emt 0:00:08]} 7. Nb3 {[%emt 0:00:03]} Be7 {[%emt 0:00:08]} 8. Be3 {[%emt 0:00:03]} Be6 {[%emt 0:00:08]} 9. Qd2 {[%emt 0:00:16]} Nbd7 {[%emt 0:02:56]} 10. a4 {[%emt 0:04:01]} O-O {[%emt 0:00:42]} 11. a5 {[%emt 0:03:43]} Rc8 {[%emt 0:06:05]} 12. O-O {[%emt 0:05:44]} Qc7 {[%emt 0:03:11] B92: Sicilian Najdorf: 6 Be2.} 13. f4 {[%emt 0:08:43]} exf4 {[%emt 0:10:41]} 14. Bxf4 {[%emt 0:01:14] [#]} Bxb3 $146 {[%emt 0:08:11] Black is slightly better.} ({Predecessor:} 14... Ne5 15. Nd4 Rfe8 16. Bxe5 dxe5 17. Nf5 Bxf5 18. Rxf5 Bb4 19. Qg5 Bxc3 20. Rxf6 Bxa5 21. Bd3 Qc5+ 22. Kh1 Bd8 {0-1 (22) Dobierzin,O (2088)-Darpan,I (1993) Belgrade 2010}) 15. cxb3 {[%emt 0:00:07]} Nc5 {[%emt 0:02:00][%csl LRb3,LRe4]} 16. Nd5 {[%emt 0:27:17]} Nxb3 {[%emt 0:10:06] Pair of Knights!} 17. Nxc7 {[%emt 0:00:28]} Nxd2 {[%emt 0:00:10]} 18. Bxd2 {[%emt 0:00:04]} Rxc7 {[%emt 0:00:12]} 19. Bf3 {[%emt 0:00:03]} Nd7 {[%emt 0:02:12]} 20. Rac1 Rxc1 {[%emt 0:10:09]} 21. Rxc1 {[%emt 0:00:59] Black must now prevent Rc7.} Nc5 {[%emt 0:02:34]} 22. Be3 {[%emt 0:29:49][%cal Oe4e5]} Nb3 {[%emt 0:20:01]} 23. Rc7 {[%emt 0:00:13][%csl LRb7,LRe7]} Bf6 {[%emt 0:01:05]} 24. Bb6 {[%emt 0:05:47]} Bd8 {[%emt 0:10:21]} (24... Bxb2 $11 {keeps the balance.} 25. Rxb7 Bc3) 25. Rd7 $1 $16 {[%emt 0:03:25]} (25. Rxb7 $6 Nxa5 26. Bxa5 Bxa5 $14) 25... Bxb6+ {[%emt 0:00:20]} 26. axb6 {[%emt 0:00:04][%mdl 4096] Endgame KRB-KRN} Nc5 {[%emt 0:00:21]} 27. Rc7 {[%emt 0:00:06][%cal Oe4e5] aiming for e5!} Rb8 {[%emt 0:05:22]} 28. e5 {[%emt 0:00:16]} Na4 {[%emt 0:00:09]} 29. exd6 {[%emt 0:01:35]} Nxb6 {[%emt 0:00:14]} 30. Bxb7 {[%emt 0:04:16] d7 is the strong threat. White is much more active.} Kf8 {[%emt 0:01:15]} 31. Bxa6 {[%emt 0:00:39]} Rd8 {[%emt 0:01:36]} 32. Rc6 {[%emt 0:00:51]} Nd5 {[%emt 0:00:15]} 33. Bc4 {[%emt 0:03:41]} Ne3 {[%emt 0:00:50]} 34. Bd3 {[%emt 0:00:28]} Ng4 {[%emt 0:00:49]} 35. Bf5 {[%emt 0:00:41]} (35. Bxh7 g6 36. h4 Kg7 37. Bxg6 fxg6 $17) 35... Ne5 {[%emt 0:00:23]} 36. Rc5 {[%emt 0:00:38]} f6 {[%emt 0:00:42]} 37. Rc8 $1 {[%emt 0:00:21]} (37. Bxh7 g6 $11) 37... Rxc8 {[%emt 0:00:31]} 38. Bxc8 $14 {[%emt 0:00:04] Strongly threatening b4. KB-KN} Ke8 $2 {[%emt 0:01:15]} (38... Nc4 $16) 39. b4 $1 $18 {[%emt 0:00:31]} Nf7 $2 {[%emt 0:00:50] [#]} (39... Kd8) 40. d7+ $1 {[%emt 0:00:36]} Kd8 {[%emt 0:00:06]} 41. Kf2 {[%emt 0:30:02]} Kc7 {[%emt 0:30:30]} 42. Ke3 {[%emt 0:00:09]} Kc6 {[%emt 0:02:00]} 43. Kd4 {[%emt 0:00:23]} Nd8 {[%emt 0:00:00]} (43... h5 $142 44. g3 Nd8) 44. Kc4 {[%emt 0:00:00]} h5 {[%emt 0:00:00]} 45. g3 {[%emt 0:00:00]} g5 {[%emt 0:00:00]} 46. b5+ {[%emt 0:00:00]} (46. Kd4 $142 {And now Ke4 would win.} Kd6 47. Ke4) 46... Kd6 {[%emt 0:00:00]} 47. b6 {[%emt 0:00:00][%cal Bb5b6,Bb6b7][%mdl 32]} f5 {[%emt 0:00:00]} 48. b7 {[%emt 0:00:00]} Kc7 {[%emt 0:00:00]} 49. Kd5 {[%emt 0:00:00] Hoping for Ke5.} f4 {[%emt 0:00:00] [#]} 50. gxf4 {[%emt 0:00:00]} gxf4 {[%emt 0:00:00]} 51. Ke4 {[%emt 0:00:00]} Nxb7 {[%emt 0:00:00]} 52. Bxb7 {[%emt 0:00:00]} (52. Kxf4 Nc5 $11) 52... Kxd7 {[%emt 0:00:00] KB-KPP} 53. Kf5 {[%emt 0:00:00]} (53. Kxf4 Ke6 $11) 53... Ke7 {[%emt 0:00:00]} 54. Kg6 {[%emt 0:00:00] White wants to mate with h4.} ({And not} 54. Kxf4 Kf6 $11) 54... Kf8 {[%emt 0:01:09]} 55. Kh7 {[%emt 0:00:00] h4 would kill now.} ({Stronger than} 55. Kxh5 Kg8 $11) ({Not} 55. Bd5 f3 $14) 55... h4 {[%emt 0:00:05]} 56. Bd5 {[%emt 0:00:00]} Ke7 {[%emt 0:00:31]} 57. Kg7 {[%emt 0:00:00]} Ke8 {[%emt 0:00:15]} 58. Bf3 {[%emt 0:00:00]} Ke7 {[%emt 0:00:16]} 59. Bh5 {[%emt 0:00:00]} Kd7 {[%emt 0:00:57]} 60. Kf6 {[%emt 0:00:00]} Kd8 {[%emt 0:00:20]} 61. Ke6 {[%emt 0:00:00]} Kc7 {[%emt 0:01:49]} 62. Ke7 {[%emt 0:00:00]} Kc8 {[%emt 0:00:15]} 63. Bf3 {[%emt 0:00:00]} Kc7 {[%emt 0:00:19]} 64. Bg4 {[%emt 0:00:00]} Kc6 {[%emt 0:01:46]} 65. Bf3+ {[%emt 0:00:00]} Kc7 $1 {[%emt 0:00:11]} 66. Kf6 {[%emt 0:00:00]} Kd8 {[%emt 0:00:25]} 67. Bc6 {[%emt 0:00:00]} Kc7 {[%emt 0:00:43][%mdl 32768] Weighted Error Value: White=0.12 (very precise) /Black=0.19 (very precise) . An unexpected result.} 1/2-1/2

[Event "FIDE WY-U16 Olympiad 2022"]
[Site "Nakhchivan"]
[Date "2022.10.04"]
[Round "3.18"]
[White "Akin, Yagiz Cinar"]
[Black "Taspinar, Yanki"]
[Result "1/2-1/2"]
[ECO "D45"]
[WhiteElo "2249"]
[BlackElo "2325"]
[Annotator "TA"]
[PlyCount "83"]
[EventDate "2022.10.02"]
[EventType "team-tourn"]
[EventCountry "AZE"]
[SourceTitle "playchess.com"]
[Source "ChessBase"]
[SourceQuality "1"]
[WhiteTeam "Turkey"]
[BlackTeam "Turkey"]
[WhiteTeamCountry "TUR"]
[BlackTeamCountry "TUR"]
[TimeControl "40/5400+30:1800+30"]

{[%evp 14,83,0,0,0,0,8,0,0,0,0,0,10,17,17,11,29,14,5,0,4,0,-3,-7,0,0,0,-1,0,0,0,0,0,0,0,0,0,-10,-6,-7,0,-2,0,0,0,0,0,0,0,0,0,0,0,0,0,0,0,0,0,-10,-10,-10,-10,-10,-10,-10,0,-10,0,-10,0,-10]} 1. d4 {[%emt 0:00:01]} d5 {[%emt 0:00:20]} 2. c4 {[%emt 0:00:29]} e6 {[%emt 0:00:39]} 3. Nc3 {[%emt 0:00:49]} c6 {[%emt 0:00:49]} 4. e3 {[%emt 0:00:28]} Nf6 {[%emt 0:00:27]} 5. Nf3 {[%emt 0:00:17]} Nbd7 {[%emt 0:00:15]} 6. b3 {[%emt 0:00:38]} Bd6 {[%emt 0:02:08]} 7. Be2 {[%emt 0:02:10]} O-O {[%emt 0:01:07]} 8. O-O {[%emt 0:00:03]} b6 {[%emt 0:00:45] D45: Semi-Slav: 5 e3.} 9. Bb2 {[%emt 0:00:14]} Bb7 {[%emt 0:00:05]} 10. Bd3 {[%emt 0:01:27]} Qe7 {[%emt 0:07:13]} 11. Re1 {[%emt 0:00:33]} c5 {[%emt 0:08:00]} 12. Rc1 {[%emt 0:25:35]} Rad8 {[%emt 0:12:02]} 13. cxd5 {[%emt 0:08:08] [#]} cxd4 $146 {[%emt 0:08:47]} (13... exd5 {seems wilder.} 14. Ne2 Rc8 15. Nf4 Rc7) ({Predecessor:} 13... Nxd5 14. Ne4 Nb4 15. Nxd6 Bxf3 16. gxf3 Nxd3 17. Qxd3 Qxd6 18. Qe4 cxd4 19. Qxd4 Qxd4 20. Bxd4 {½-½ (68) Erigaisi,A (2660)-Bok,B (2624) Chess.com INT 2022}) 14. Nxd4 {[%emt 0:05:11] Threatening dxe6.} Nxd5 {[%emt 0:01:09]} 15. Nxd5 {[%emt 0:02:18]} Bxd5 {[%emt 0:00:50] The position is equal.} (15... Qg5 $2 16. Nc6 Nc5 17. Nxd8 Rxd8 {[#]} 18. Bc4 $1 $18) 16. Qh5 {[%emt 0:07:02][%csl Gd3][%cal Rh5h7] [#]} h6 {[%emt 0:18:29]} 17. Bb1 {[%emt 0:14:46][%cal Od4f5]} Nf6 {[%emt 0:13:36]} 18. Qe2 {[%emt 0:04:26] aiming for e4.} Bc5 {[%emt 0:04:47]} 19. Red1 {[%emt 0:03:46]} Ba8 {[%emt 0:04:50]} 20. Nf3 {[%emt 0:02:03]} Rxd1+ {[%emt 0:03:08]} 21. Rxd1 {[%emt 0:00:05]} Rd8 {[%emt 0:00:28]} 22. h3 {[%emt 0:04:13]} Rxd1+ {[%emt 0:05:46]} 23. Qxd1 {[%emt 0:00:06]} Qd7 {[%emt 0:00:16]} 24. Qxd7 {[%emt 0:01:48]} Nxd7 {[%emt 0:00:05]} 25. Ne5 {[%emt 0:02:47]} Nxe5 {[%emt 0:02:38]} 26. Bxe5 $11 {[%emt 0:00:07][%mdl 4096] Endgame KBB-KBB} Bd5 {[%emt 0:01:04]} 27. Kf1 {[%emt 0:00:55]} f6 {[%emt 0:00:58]} 28. Bc3 {[%emt 0:00:05]} Kf7 {[%emt 0:00:42]} 29. e4 {[%emt 0:01:44]} Bc6 {[%emt 0:00:23]} 30. Bd3 {[%emt 0:01:36]} a5 {[%emt 0:01:15]} 31. Ke2 {[%emt 0:00:42]} g5 {[%emt 0:00:50]} 32. f3 {[%emt 0:01:08]} Ke7 {[%emt 0:00:49]} 33. a4 {[%emt 0:01:33]} e5 {[%emt 0:01:38]} 34. Bc4 {[%emt 0:00:46]} Kd6 {[%emt 0:00:22]} 35. Kd3 {[%emt 0:00:30]} Bb7 {[%emt 0:00:29]} 36. Bb2 {[%emt 0:00:48]} h5 {[%emt 0:00:41]} 37. g4 {[%emt 0:00:54]} h4 {[%emt 0:00:19]} 38. Bc1 {[%emt 0:00:56]} Bc8 {[%emt 0:00:27]} 39. Bb2 {[%emt 0:00:07]} Bb7 {[%emt 0:00:06]} 40. Bc1 {[%emt 0:00:03]} Bc8 {[%emt 0:00:04]} 41. Bb2 {[%emt 0:30:04]} Bb7 {[%emt 0:30:04]} 42. Bc1 {[%emt 0:00:03] A balanced but interesting game.  Weighted Error Value: White=0.02 (flawless) /Black=0.02 (flawless)} 1/2-1/2

[Event "FIDE WY-U16 Olympiad 2022"]
[Site "Nakhchivan"]
[Date "2022.10.04"]
[Round "3.18"]
[White "Badenhorst, Chloe"]
[Black "Nabil Nazar, Mohamed"]
[Result "0-1"]
[ECO "C02"]
[WhiteElo "1687"]
[BlackElo "1987"]
[Annotator "TA"]
[PlyCount "60"]
[EventDate "2022.10.02"]
[EventType "team-tourn"]
[EventCountry "AZE"]
[SourceTitle "playchess.com"]
[Source "ChessBase"]
[SourceQuality "1"]
[WhiteTeam "South Africa"]
[BlackTeam "Sri Lanka"]
[WhiteTeamCountry "RSA"]
[BlackTeamCountry "SRI"]
[TimeControl "40/5400+30:1800+30"]

{[%evp 17,60,0,-5,0,35,0,41,-17,-17,-18,27,28,16,4,34,27,60,39,31,29,37,13,32,0,16,0,0,-36,-22,-52,-33,-85,-85,-145,-87,-94,-90,-238,-246,-455,-181,-288,-169,-326,-317]} 1. e4 {[%emt 0:00:01]} e6 {[%emt 0:00:11]} 2. d4 {[%emt 0:00:11]} d5 {[%emt 0:00:06]} 3. e5 {[%emt 0:00:05]} c5 {[%emt 0:00:29]} 4. c3 {[%emt 0:00:07]} Nc6 {[%emt 0:00:05]} 5. Nf3 {[%emt 0:00:07]} Qb6 {[%emt 0:00:07]} 6. a3 {[%emt 0:00:10]} c4 {[%emt 0:00:13]} 7. Nbd2 {[%emt 0:00:20]} Na5 {[%emt 0:00:53]} 8. Be2 {[%emt 0:01:02] 8.Rb1 is the modern continuation.} Bd7 {[%emt 0:00:10]} 9. O-O {[%emt 0:01:37]} h6 {[%emt 0:00:46]} 10. Rb1 {[%emt 0:02:53] C02: French: Advance Variation.} O-O-O {[%emt 0:04:43]} 11. Qc2 {[%emt 0:05:21]} (11. b4 {is interesting.} cxb3 12. c4 Ba4 13. c5) 11... Ne7 {[%emt 0:03:08]} 12. b4 {[%emt 0:09:25]} (12. a4 $14) 12... cxb3 $1 $11 {[%emt 0:01:59]} 13. Nxb3 {[%emt 0:00:22]} Ba4 {[%emt 0:01:02][%cal Ra4b3]} (13... Nxb3 14. Rxb3 (14. Qxb3 Qxb3 15. Rxb3 Nc6) 14... Ba4 15. Rxb6 Bxc2) 14. Nfd2 {[%emt 0:02:13]} Nec6 {[%emt 0:01:24] [#]} 15. Qb2 $146 {[%emt 0:00:43]} ({Predecessor:} 15. Qa2 Nxb3 16. Nxb3 Qc7 17. Be3 Bxb3 18. Qxb3 Kb8 19. c4 Na5 20. Qa4 Nxc4 21. Rfc1 {0-1 (56) Houska,J (2386)-Iljushin,A (2537) Cappelle la Grande 2003}) 15... Nxb3 {[%emt 0:13:19]} 16. Nxb3 {[%emt 0:00:07]} Bb5 {[%emt 0:00:30]} (16... Bxb3 17. Qxb3 Qxb3 18. Rxb3 h5) 17. Bxb5 {[%emt 0:07:01]} Qxb5 {[%emt 0:00:02]} 18. a4 {[%emt 0:10:43]} Qa6 {[%emt 0:01:55]} 19. Qa2 {[%emt 0:01:55]} Rd7 {[%emt 0:03:05]} 20. Bb2 {[%emt 0:08:58]} Be7 {[%emt 0:01:38]} 21. f4 {[%emt 0:01:48]} g6 {[%emt 0:00:56]} 22. Rbc1 {[%emt 0:04:44]} Kb8 {[%emt 0:01:33]} 23. Nd2 {[%emt 0:02:15]} Qd3 {[%emt 0:05:39]} 24. Nf3 {[%emt 0:04:33]} (24. Nb3 $15) 24... Na5 $17 {[%emt 0:05:09] Black is much more active.} 25. Rcd1 {[%emt 0:09:24] [#]} (25. Rf2 $142) 25... Qa6 {[%emt 0:01:52]} ({Black should try} 25... Qc4 $1 {[%cal Rc4a2]} 26. Ra1 Nb3) 26. Nd2 {[%emt 0:01:46]} Rc8 {[%emt 0:00:43]} 27. g4 {[%emt 0:04:08] Loses the game.} (27. h3 $17 {is a better defense.}) 27... Qe2 $19 {[%emt 0:06:23]} 28. h3 $2 {[%emt 0:07:56]} (28. Qa1 {keeps fighting.}) 28... h5 $2 {[%emt 0:01:28]} (28... Bh4 29. Nf3 {[#]} Bf2+ $1 {[%mdl 512]} 30. Rxf2 Qxd1+ 31. Kg2 Nc4) 29. g5 {[%emt 0:01:05]} (29. Rfe1 $142 Qd3 30. Kg2) 29... h4 {[%emt 0:03:08]} (29... Qe3+ $142 30. Kg2 h4) 30. Kh1 $2 {[%emt 0:03:21]} (30. Qa1) 30... Rdc7 {[%emt 0:01:08] Weighted Error Value: White=0.62/Black=0.44} 0-1

[Event "FIDE WY-U16 Olympiad 2022"]
[Site "Nakhchivan"]
[Date "2022.10.04"]
[Round "3.19"]
[White "Camlar, Arda"]
[Black "Yavuz, Efe Metehan"]
[Result "1/2-1/2"]
[ECO "A06"]
[WhiteElo "2322"]
[BlackElo "2223"]
[Annotator "TA"]
[PlyCount "76"]
[EventDate "2022.10.02"]
[EventType "team-tourn"]
[EventCountry "AZE"]
[SourceTitle "playchess.com"]
[Source "ChessBase"]
[SourceQuality "1"]
[WhiteTeam "Turkey"]
[BlackTeam "Turkey"]
[WhiteTeamCountry "TUR"]
[BlackTeamCountry "TUR"]
[TimeControl "40/5400+30:1800+30"]

{[%evp 9,76,0,8,0,6,1,19,16,30,16,17,7,0,10,19,10,10,17,28,0,31,29,68,54,58,68,59,39,41,29,15,14,25,14,14,14,14,14,14,14,15,4,4,4,4,4,5,0,0,-7,0,0,0,-6,-8,-2,0,0,0,0,0,0,0,0,0,0,0,0,0]} 1. Nf3 {[%emt 0:00:14]} d5 {[%emt 0:01:06]} 2. b3 {[%emt 0:00:10]} c5 {[%emt 0:00:52]} 3. Bb2 {[%emt 0:00:19]} e6 {[%emt 0:05:00]} 4. e3 {[%emt 0:00:52]} Nf6 {[%emt 0:00:46]} 5. Be2 {[%emt 0:02:56]} Nc6 {[%emt 0:00:13]} 6. O-O {[%emt 0:00:42] A06: Réti Opening: 1 Nf3 d5.} Bd6 {[%emt 0:01:44]} 7. d4 {[%emt 0:01:28] Inhibits e5.} O-O {[%emt 0:02:19]} (7... cxd4 {is interesting.} 8. Nxd4 Bd7 9. c4 O-O) 8. dxc5 {[%emt 0:02:44]} Bxc5 {[%emt 0:00:03]} 9. Nbd2 {[%emt 0:00:55]} Qe7 {[%emt 0:01:59]} 10. c4 {[%emt 0:02:00]} Rd8 {[%emt 0:13:07]} 11. Qc2 {[%emt 0:05:35]} e5 {[%emt 0:08:41]} 12. cxd5 {[%emt 0:08:31]} Nxd5 {[%emt 0:00:51] [#]} 13. a3 $146 {[%emt 0:04:52]} (13. Ne4 {seems wilder.} Bxe3 14. fxe3 Nxe3 15. Qc3) ({Predecessor:} 13. Nc4 e4 14. Nd4 Nxd4 15. Bxd4 Bxd4 16. exd4 Nb4 17. Qc3 Be6 18. a3 Nc6 19. Rfd1 {0-1 (36) Kulmala,K (1890)-Op den Kelder,J (2293) Jyvaskyla 2009}) 13... a5 {[%emt 0:07:51]} (13... Bxe3 {feels hotter.} 14. fxe3 Nxe3 15. Qe4 Nxf1 16. Rxf1 Be6) 14. Rfd1 {[%emt 0:09:27]} Bb6 {[%emt 0:18:36][%cal Ob6e3]} (14... Bxe3 $5 15. fxe3 Nxe3 $11) 15. Bd3 {[%emt 0:05:27]} Nf6 {[%emt 0:07:46]} 16. Ne4 {[%emt 0:05:45]} g6 {[%emt 0:06:09]} 17. Nxf6+ {[%emt 0:14:01]} Qxf6 {[%emt 0:00:01]} 18. Bb5 {[%emt 0:01:39]} Bf5 {[%emt 0:01:45]} 19. Qc3 {[%emt 0:03:18]} Rxd1+ {[%emt 0:04:07]} 20. Rxd1 {[%emt 0:00:02] Threatening Bxc6.} Rc8 {[%emt 0:00:01][%cal Oc6d4]} 21. Bxc6 {[%emt 0:06:59]} ({Don't go for} 21. Nxe5 $2 Qxe5 22. Qxe5 Nxe5 23. Bxe5 Rc5 $19) (21. Qe1 {keeps more tension.} Bc7 22. Bc4 Qe7 23. h3) 21... Rxc6 {[%emt 0:00:02] The position is equal.} 22. Qxe5 {[%emt 0:00:26]} Qxe5 {[%emt 0:00:02]} 23. Nxe5 {[%emt 0:00:52]} Rc2 {[%emt 0:00:16]} 24. Nc4 {[%emt 0:01:53]} Bc7 {[%emt 0:02:52] [#] White must now prevent ...b5.} 25. Rd2 {[%emt 0:03:10]} b5 {[%emt 0:02:34]} 26. Rxc2 {[%emt 0:00:15]} Bxc2 $11 {[%emt 0:00:02][%mdl 4096] Endgame KBB-KBN} 27. Nd2 {[%emt 0:00:14]} Bd6 {[%emt 0:00:39]} 28. f3 {[%emt 0:01:43]} f5 {[%emt 0:01:13]} 29. g3 {[%emt 0:01:20]} Kf7 {[%emt 0:00:42]} 30. Kf2 {[%emt 0:01:13]} Ke6 {[%emt 0:02:13]} 31. e4 {[%emt 0:05:16]} fxe4 {[%emt 0:00:56]} 32. fxe4 {[%emt 0:00:42]} h6 {[%emt 0:03:19]} 33. Ke2 {[%emt 0:01:55]} b4 {[%emt 0:02:00]} 34. a4 {[%emt 0:04:18]} Bc5 {[%emt 0:00:20]} 35. Bg7 {[%emt 0:00:51]} h5 {[%emt 0:00:01]} 36. h4 {[%emt 0:00:43]} Bd6 {[%emt 0:01:01]} 37. Kf2 {[%emt 0:00:25]} Bc5+ {[%emt 0:00:28] A strong pair of Bishops.} 38. Ke2 {[%emt 0:01:05]} Bd6 {[%emt 0:00:02] Weighted Error Value: White=0.05 (flawless) /Black=0.05 (flawless)} 1/2-1/2

[Event "FIDE WY-U16 Olympiad 2022"]
[Site "Nakhchivan"]
[Date "2022.10.04"]
[Round "3.19"]
[White "Gamage, Desandhi Dhihansa"]
[Black "Meise, Keagen"]
[Result "1-0"]
[ECO "B77"]
[WhiteElo "1778"]
[BlackElo "1362"]
[Annotator "NA RC COMBH"]
[PlyCount "163"]
[EventDate "2022.10.02"]
[EventType "team-tourn"]
[EventCountry "AZE"]
[SourceTitle "playchess.com"]
[Source "ChessBase"]
[SourceQuality "1"]
[WhiteTeam "Sri Lanka"]
[BlackTeam "South Africa"]
[WhiteTeamCountry "SRI"]
[BlackTeamCountry "RSA"]
[TimeControl "40/5400+30:1800+30"]

1. e4 {[%emt 0:00:02]} c5 {[%emt 0:00:23]} 2. Nf3 {[%emt 0:00:05]} Nc6 {[%emt 0:00:07]} 3. d4 {[%emt 0:00:04]} cxd4 {[%emt 0:00:09]} 4. Nxd4 {[%emt 0:00:04]} g6 {[%emt 0:00:07]} 5. Nc3 {[%emt 0:00:08]} Bg7 {[%emt 0:00:06]} 6. Be3 {[%emt 0:00:03]} d6 {[%emt 0:00:06]} 7. Bc4 {[%emt 0:01:50]} Nf6 {[%emt 0:00:07]} 8. f3 {[%emt 0:00:27]} O-O {[%emt 0:01:18]} 9. Qd2 {[%emt 0:00:28]} Qa5 {[%emt 0:00:48]} 10. g4 {[%emt 0:14:22]} Nxd4 {[%emt 0:03:08]} 11. Bxd4 {[%emt 0:00:28]} Be6 {[%emt 0:02:03]} 12. Be2 {[%emt 0:03:42]} Nd7 {[%emt 0:10:15]} 13. f4 {[%emt 0:04:04]} Bxd4 {[%emt 0:06:13]} 14. Qxd4 {[%emt 0:00:09]} f6 {[%emt 0:01:16]} 15. h4 {[%emt 0:03:47]} Qc5 {[%emt 0:03:25]} 16. Qd2 {[%emt 0:13:19]} Kg7 {[%emt 0:09:34]} 17. O-O-O {[%emt 0:15:05]} Rg8 {[%emt 0:08:05]} 18. f5 {[%emt 0:04:10]} Bf7 {[%emt 0:00:39]} 19. g5 {[%emt 0:05:36]} fxg5 {[%emt 0:01:21]} 20. Qxg5 {[%emt 0:00:29]} Nf6 {[%emt 0:00:45]} 21. Qf4 {[%emt 0:08:04]} Kf8 {[%emt 0:06:36]} 22. fxg6 {[%emt 0:01:51]} hxg6 {[%emt 0:00:19]} 23. Qh6+ {[%emt 0:05:53]} Ke8 {[%emt 0:00:47]} 24. Qf4 {[%emt 0:01:22]} a6 {[%emt 0:00:41]} 25. Rd2 {[%emt 0:03:37]} Rc8 {[%emt 0:03:42]} 26. Bg4 {[%emt 0:04:23]} Rb8 {[%emt 0:04:05]} 27. Re1 {[%emt 0:01:53]} g5 {[%emt 0:00:53]} 28. hxg5 {[%emt 0:03:39]} Nxg4 {[%emt 0:01:03]} 29. Qxg4 {[%emt 0:00:04]} Qxg5 {[%emt 0:00:36]} 30. Qf3 {[%emt 0:01:01]} Rf8 {[%emt 0:00:53]} 31. Qd3 {[%emt 0:00:16]} Be6 {[%emt 0:00:38]} 32. Qd4 {[%emt 0:01:08]} Qc5 {[%emt 0:04:25]} 33. Qa4+ {[%emt 0:01:28]} Bd7 {[%emt 0:00:37]} 34. Qb3 {[%emt 0:00:11]} b5 {[%emt 0:01:25]} 35. e5 {[%emt 0:01:05]} dxe5 {[%emt 0:01:32]} 36. Rde2 {[%emt 0:00:08]} Qd6 {[%emt 0:02:10]} 37. Rxe5 {[%emt 0:00:18]} Rf7 {[%emt 0:04:40]} 38. Nd5 {[%emt 0:01:31]} e6 {[%emt 0:00:17]} 39. Qh3 {[%emt 0:00:27]} Kd8 {[%emt 0:01:03]} 40. Qh4+ {[%emt 0:01:55]} Kc8 {[%emt 0:00:44]} 41. Nf4 {[%emt 0:31:09]} Rb6 {[%emt 0:30:24]} 42. Qg4 {[%emt 0:00:17]} Rf5 {[%emt 0:01:23]} 43. Qg8+ {[%emt 0:00:32]} Kb7 {[%emt 0:00:17]} 44. Nd3 {[%emt 0:00:10]} Rxe5 {[%emt 0:00:28]} 45. Nxe5 {[%emt 0:00:16]} Qe7 {[%emt 0:01:39]} 46. Qg2+ {[%emt 0:00:41]} Bc6 {[%emt 0:00:14]} 47. Qe2 {[%emt 0:00:15]} Bd5 {[%emt 0:00:11]} 48. Rf1 {[%emt 0:00:15]} Qg5+ {[%emt 0:00:52]} 49. Kb1 {[%emt 0:00:04]} a5 {[%emt 0:01:18]} 50. Qh2 {[%emt 0:00:46]} Ka6 {[%emt 0:00:35]} 51. Nd7 {[%emt 0:00:13]} Qe7 {[%emt 0:00:50]} 52. Qc7 {[%emt 0:00:44]} Rb7 {[%emt 0:03:25]} 53. Nc5+ {[%emt 0:00:10]} Ka7 {[%emt 0:00:05]} 54. Qxa5+ {[%emt 0:00:05]} Kb8 {[%emt 0:00:05]} 55. Nxb7 {[%emt 0:00:10]} Bxb7 {[%emt 0:01:25]} 56. Qxb5 {[%emt 0:00:05]} Ka7 {[%emt 0:00:18]} 57. Rd1 {[%emt 0:00:20]} Qg7 {[%emt 0:01:37]} 58. a4 {[%emt 0:00:51]} Bc8 {[%emt 0:01:00]} 59. Qc5+ {[%emt 0:00:46]} Kb7 {[%emt 0:00:27]} 60. Rd4 {[%emt 0:00:32]} Kb8 {[%emt 0:01:22]} 61. Rb4+ {[%emt 0:01:15]} Bb7 {[%emt 0:00:08]} 62. a5 {[%emt 0:00:46]} Ka8 {[%emt 0:00:14]} 63. Qb6 {[%emt 0:00:43]} Qd7 {[%emt 0:00:27]} 64. Rd4 {[%emt 0:01:37]} Bd5 {[%emt 0:00:20]} 65. Qa6+ {[%emt 0:00:40]} Qa7 {[%emt 0:00:34]} 66. Qxa7+ {[%emt 0:00:33]} Kxa7 {[%emt 0:00:06]} 67. b4 {[%emt 0:00:15]} Ka6 {[%emt 0:00:10]} 68. c4 {[%emt 0:00:11]} Bf3 {[%emt 0:00:14]} 69. Rd6+ {[%emt 0:00:05]} Ka7 {[%emt 0:00:04]} 70. Rxe6 {[%emt 0:00:05]} Bg4 {[%emt 0:00:08]} 71. Rf6 {[%emt 0:00:08]} Be2 {[%emt 0:00:10]} 72. c5 {[%emt 0:00:10]} Kb7 {[%emt 0:00:05]} 73. Kb2 {[%emt 0:00:16]} Bc4 {[%emt 0:00:14]} 74. Kc3 {[%emt 0:00:05]} Bd5 {[%emt 0:00:09]} 75. Kd4 {[%emt 0:00:07]} Bg2 {[%emt 0:00:05]} 76. b5 {[%emt 0:00:08]} Ka7 {[%emt 0:00:24]} 77. c6 {[%emt 0:00:12]} Bh3 {[%emt 0:00:05]} 78. b6+ {[%emt 0:00:16]} Ka6 {[%emt 0:00:12]} 79. b7 {[%emt 0:00:05]} Ka7 {[%emt 0:00:04]} 80. Rf8 {[%emt 0:00:23]} Ka6 {[%emt 0:00:17]} 81. b8=Q {[%emt 0:00:10]} Kxa5 {[%emt 0:00:05]} 82. Qb2 {[%emt 0:00:16]} 1-0